Cogmind - Beta 9.6 @@@ ROGUE MODE // 2020.06.20 @ 19:14:42 Player: aoemica Result: Destroyed by D-53 Grenadier with Mini Grenade Launcher Performance ------------- Evolutions (0) 0 Regions Visited (2) 400 Robots Destroyed (35) 175 Value Destroyed (538) 538 Prototype IDs (7) 140 Alien Tech Used (0) 0 Bonus (0) 0 TOTAL SCORE: 1253 Bonus ------- None Cogmind --------- Core Integrity 0/250 Matter 285/300 Energy 250/250 System Corruption 0% Temperature Cool (0) Movement Rolling (140) Ox4 Location -10/Mines Parts ------- > --- POWER (1) -------- Ion Engine > --- PROPULSION (2) --- Light Treads Compact Wheel > --- UTILITY (2) ------ High-capacity Storage Unit High-capacity Storage Unit > --- WEAPON (2) ------- Light Assault Rifle > --- INVENTORY (20) --- Ion Engine Light Treads Light Treads Compact Wheel Compact Wheel Compact Wheel Medium Storage Unit Large Storage Unit Small Laser Small Laser Small Laser Small Laser Particle Gun Light Assault Rifle Grenade Launcher Grenade Launcher Rocket Launcher Mining Claw Peak State ------------ > --- POWER ------------ Light Ion Engine > --- PROPULSION ------- Light Treads Wheel > --- UTILITY ---------- High-capacity Storage Unit High-capacity Storage Unit > --- WEAPON ----------- Small Laser Beam Cannon > --- INVENTORY -------- Ion Engine Light Ion Engine Light Ion Engine Light Treads Light Treads Light Treads Aluminum Leg Wheel Compact Wheel Compact Wheel Compact Wheel Compact Wheel Small Storage Unit Medium Storage Unit Small Laser Small Laser Particle Gun Light Assault Rifle Grenade Launcher [Rating: 9] Favorites ----------- Power Light Ion Engine Engine Light Ion Engine Propulsion Light Treads Treads Light Treads Wheel Wheel Utility High-capacity Storage Unit Storage High-capacity Storage Unit Weapon Beam Cannon Energy Gun Small Laser Energy Cannon Beam Cannon Ballistic Gun Light Assault Rifle Launcher Grenade Launcher Build | -11 -10 -10 ------- Run | Scr Mat Min Slots Evolved . | . . . Power . | . . . Propulsion . | . . . Utility . | . . . Weapon . | . . . Parts Attached 24 | 6 8 10 Power 3 | 1 1 1 Engine 3 | 1 1 1 Core . | . . . Reactor . | . . . Propulsion 8 | 2 3 3 Treads 2 | . 2 . Leg . | . . . Wheel 6 | 2 1 3 Hover . | . . . Flight . | . . . Utility 3 | 1 2 . Device . | . . . Storage 3 | 1 2 . Processor . | . . . Hackware . | . . . Protection . | . . . Artifact . | . . . Weapon 10 | 2 2 6 Energy Gun 3 | 2 1 . Energy Cannon 3 | . 1 2 Ballistic Gun 1 | . . 1 Ballistic Cannon . | . . . Launcher 3 | . . 3 Special Weapon . | . . . Impact Weapon . | . . . Slashing Weapon . | . . . Piercing Weapon . | . . . Special Melee Weapon . | . . . Unidentified Prototypes . | . . . Parts Lost 5 | . 1 4 Power . | . . . Propulsion 3 | . . 3 Utility . | . . . Weapon 2 | . 1 1 Highest Loss Streak 3 | . 1 3 Average Slot Usage (%) 99 | . 98 100 Engine 14 | . 14 14 Treads 13 | . 13 14 Wheel 14 | . 14 14 Storage 27 | . 26 28 Energy Gun 13 | . 16 2 Energy Cannon 11 | . 11 13 Ballistic Gun 2 | . . 11 Naked Turns . | . . . Heaviest Build 73 | 11 72 73 Greatest Support 26 | 26 26 20 Greatest Overweight (x) 7 | . 7 7 Average Overweight (x) 4 | . 3 6 Largest Inventory Capacity 20 | 6 20 20 Average Capacity 18 | 5 18 20 Most Carried 20 | 6 20 20 Average Carried 16 | 3 15 19 Final Capacity 20 | 6 20 20 Final Carried 20 | 5 20 18 Class Distribution -------------------- 85% | Hauler-Mutant 14% | Mutant Dominant Class ---------------- Hauler-Mutant | -10/Materials Hauler-Mutant | -10/Mines Resources | -11 -10 -10 ----------- Run | Scr Mat Min Matter Collected 497 | 260 80 157 Remotely . | . . . Salvage Created 1097 | 58 873 166 Parts 63 | 3 48 12 Haulers Intercepted 2 | . 2 . Recyclers Shooed 6 | . 5 1 Parts Field Recycled . | . . . Retrieved Matter . | . . . Parts Self-Destructed . | . . . Prevented . | . . . Kills | -11 -10 -10 ------- Run | Scr Mat Min Combat Hostiles Destroyed 23 | . 15 8 Guns 10 | . 10 . Cannons 6 | . 5 1 AOE 7 | . . 7 Classes Destroyed 8 | 1 6 1 Worker 1 | . 1 . Tunneler 1 | . . 1 Hauler 2 | . 2 . Recycler 6 | 1 4 1 Operator 1 | . 1 . Watcher 1 | . 1 . Swarmer 15 | . 9 6 Grunt 8 | . 6 2 Best Kill Streak 12 | 1 12 4 Combat Bots Only 5 | . 5 3 Max Kills in Single Turn 3 | 1 2 3 Gunslinging 1 | . 1 . Exploded 3 | . . 3 Melee . | . . . Uniques/NPCs Destroyed . | . . . Combat | -11 -10 -10 -------- Run | Scr Mat Min Damage Taken 929 | . 345 584 Core 256 | . 93 163 Absorbed by Shields . | . . . Core Remaining (%) 100 | 100 . . Volleys Fired 69 | 1 48 20 Largest 2 | 2 2 2 Hottest 100 | 90 100 80 Shots Fired 124 | 2 91 31 Gun 80 | 2 67 11 Cannon 37 | . 24 13 Launcher 7 | . . 7 Special . | . . . Kinetic 11 | . . 11 Thermal 73 | 1 59 13 Explosive 7 | . . 7 Electromagnetic 33 | 1 32 . Robot Hit Streak 10 | 2 10 4 Robot Miss Streak 3 | . 3 3 Penetration Max . | . . . Secondary Targets 2 | . 2 . Max Gunslinging Chain 1 | . 1 . Shots Hit Robots 77 | 2 57 18 Core Hits 47 | 2 32 13 Critical Hits . | . . . Critical Kills . | . . . Critical Parts Destroyed . | . . . Melee Attacks . | . . . Impact . | . . . Slashing . | . . . Piercing . | . . . Sneak Attacks . | . . . Combat Hostiles . | . . . Follow-up Attacks . | . . . Damage Inflicted 1605 | 28 842 735 Guns 547 | 28 480 39 Cannons 500 | . 362 138 Explosions 558 | . . 558 Melee . | . . . Ramming . | . . . Kinetic 39 | . . 39 Thermal 745 | 13 594 138 Explosive 558 | . . 558 Electromagnetic 263 | 15 248 . Impact . | . . . Slashing . | . . . Piercing . | . . . Highest Corruption . | . . . Average Corruption . | . . . Corruption Purged . | . . . Overload Shots . | . . . Overflow Damage 17 | . 10 7 Projectiles 17 | . 10 7 Explosions . | . . . Melee . | . . . Knockbacks . | . . . Impact . | . . . Kinetic . | . . . Secondary . | . . . Self-Inflicted Damage 39 | . . 39 Shots 2 | . . 2 Rammed . | . . . Targets Rammed . | . . . Kicked . | . . . Crushed . | . . . Highest Temperature 300 | 30 300 174 Average Temperature 82 | 17 84 77 Received Heat Transfer 165 | . 75 90 Effects 2 | . 2 . Interference 2 | . 2 . Siege Activations . | . . . Robots Corrupted . | . . . Combat Hostiles . | . . . Parts Fried . | . . . Impact Corruptions . | . . . Robots Melted . | . . . Combat Hostiles . | . . . Parts Melted 2 | . 2 . Heat Transferred 1777 | 37 1444 296 Parts Sabotaged . | . . . Parts Stolen . | . . . Parts Stripped . | . . . Power Chain Reactions . | . . . Missiles Intercepted . | . . . Alert | -11 -10 -10 ------- Run | Scr Mat Min Peak Influence 281 | 5 281 200 Average Influence 84 | 1 79 111 Maximum Alert Level 1 | . 1 1 Low Security (%) 88 | 100 89 81 Level 1 11 | . 10 18 Level 2 . | . . . Level 3 . | . . . Level 4 . | . . . Level 5 . | . . . High Security . | . . . Max Security . | . . . Squads Dispatched 1 | . 1 . Investigation 1 | . 1 . Extermination . | . . . Reinforcement . | . . . Assault . | . . . Garrison . | . . . Intercept . | . . . Construction Impeded . | . . . Haulers Reinforced . | . . . Stealth | -11 -10 -10 --------- Run | Scr Mat Min Distress Signals 3 | . 3 . Communications Jammed . | . . . Distress Signals . | . . . Times Spotted 35 | . 21 14 Peak Tracking Total 6 | . 6 3 Tactical Retreats 5 | . 1 4 Traps | -11 -10 -10 ------- Run | Scr Mat Min Traps Triggered . | . . . Indirectly . | . . . Trap Hack Attempts . | . . . Triggered . | . . . Disarmed . | . . . Reprogrammed . | . . . Reused . | . . . Traps Extracted . | . . . Installed . | . . . Triggered . | . . . Machines | -11 -10 -10 ---------- Run | Scr Mat Min Machines Disabled 1 | . 1 . Max in Single Turn 1 | . 1 . Machines Sabotaged . | . . . Garrisons Compromised . | . . . Overloaded Fab Kills . | . . . Fab Network Shutdowns . | . . . Hacking | -11 -10 -10 --------- Run | Scr Mat Min Machines Accessed 9 | . 8 1 Terminals 7 | . 6 1 Fabricators . | . . . Repair Stations 1 | . 1 . Recycling Units 1 | . 1 . Scanalyzers . | . . . Garrison Access . | . . . Total Hacks 39 | . 35 4 Successful 27 | . 25 2 Failed 12 | . 10 2 Catastrophic . | . . . Database Lockouts . | . . . Manual 27 | . 23 4 Terminals 33 | . 29 4 Fabricators . | . . . Repair Stations 2 | . 2 . Recycling Units 4 | . 4 . Scanalyzers . | . . . Garrison Access . | . . . Terminal Hacks 18 | . 16 2 Robot Analysis 1 | . 1 . Prototype ID Bank 11 | . 9 2 Terminal Index 1 | . 1 . Alert Level 1 | . 1 . Unreport Threat 2 | . 2 . Locate Traps 1 | . 1 . Zone Layout 1 | . 1 . Fabricator Hacks . | . . . Repair Station Hacks 1 | . 1 . Scan Component 1 | . 1 . Recycling Unit Hacks 2 | . 2 . Report Inventory 1 | . 1 . Retrieve Components 1 | . 1 . Scanalyzer . | . . . Garrison Access Hacks . | . . . Unauthorized Hacks 6 | . 6 . Terminals 4 | . 4 . Track 1 | . 1 . Botnet 2 | . 2 . Operators 1 | . 1 . Fabricators . | . . . Repair Stations . | . . . Recycling Units 2 | . 2 . Recyclers 1 | . 1 . Mask 1 | . 1 . Scanalyzers . | . . . Garrison Access . | . . . Data Cores Recovered 1 | . 1 . Used 1 | . 1 . Hacking Detections 8 | . 7 1 Full Trace Events . | . . . Feedback Events . | . . . Feedback Blocked . | . . . Robot Schematics Acquired . | . . . Robots Built . | . . . Matter . | . . . Time . | . . . Total Robot Build Rating . | . . . Part Schematics Acquired . | . . . Parts Built . | . . . Matter . | . . . Time . | . . . Total Part Build Rating . | . . . Parts Repaired . | . . . Time . | . . . Parts Recycled . | . . . Recycled Matter . | . . . Retrieved Matter . | . . . Retrieved Components 10 | . 10 . Parts Scanalyzed . | . . . Part Schematics Acquired . | . . . Parts Damaged . | . . . Bothacking | -11 -10 -10 ------------ Run | Scr Mat Min Used RIF Installer . | . . . Robots Hacked . | . . . Non-combat . | . . . Combat . | . . . Robot Hacks Applied . | . . . Relay Couplers Released . | . . . Robots Rewired . | . . . Allies Hacked . | . . . Hacks Repelled . | . . . Allies | -11 -10 -10 -------- Run | Scr Mat Min Total Allies 1 | . . 1 Largest Group 1 | . . 1 Highest-Rated Group 31 | . . 31 Highest-Rated Ally 31 | . . 31 Total Orders . | . . . Ally Attacks 1 | . . 1 Total Damage . | . . . Kills . | . . . Allies Corrupted . | . . . Allies Melted . | . . . Intel | -11 -10 -10 ------- Run | Scr Mat Min Robot Analysis Total 1 | . 1 . Derelict Logs Recovered . | . . . Drone Launches . | . . . Drone Recoveries . | . . . Exploration | -11 -10 -10 ------------- Run | Scr Mat Min Turns Passed 1887 | 67 1358 462 Spaces Moved 949 | 49 663 237 Core 1 | 1 . . Treads 329 | . 296 33 Legs . | . . . Wheels 619 | 48 367 204 Hover . | . . . Flight . | . . . Fastest Speed 50 | 50 90 140 Average Speed 164 | 88 171 159 Slowest Speed 220 | 90 220 220 Overloaded Moves . | . . . Propulsion Burnouts . | . . . Robots Hopped . | . . . Cave-ins Triggered . | . . . Exploration Rate (%) 43 | 3 77 49 Regions Visited 2 Branch Regions 1 Pre-discovered Areas . | . . . Known Exits Taken . | . . . Unknown Exits Taken 2 | 1 1 . Scrap Searched 2 | . . 2 Spaces Dug 7 | . . 7 Terrain Destroyed 39 | . . 39 Melee . | . . . Projectile . | . . . AOE 39 | . . 39 Actions | -11 -10 -10 --------- Run | Scr Mat Min Total 1154 | 68 796 290 Wait 75 | 4 54 17 Move 947 | 48 662 237 Hop . | . . . Pick Up 27 | 7 17 3 Fast Attach 8 | 6 2 . Attach 5 | . 1 4 Detach 2 | . 1 1 Swap 11 | . 5 6 Drop 10 | 2 6 2 Fire 69 | 1 48 20 Melee . | . . . Ram . | . . . Kick . | . . . Crush . | . . . Escape Stasis . | . . . Rewire . | . . . Trap . | . . . Miscellaneous . | . . . Route ------- -11/Scrapyard -10/Materials (discovered 3 exits: [*Mat x2] / *Min) -10/Mines (discovered 1 exit: [*Mat]) History --------- Turn | Location | Event 19 | -11/Scrapyard | Discovered new exit (range 15) 68 | -11/Scrapyard | Entered Materials 445 | -10/Materials | Discovered new exit (range 10) 578 | -10/Materials | Build established: Hauler-Mutant 907 | -10/Materials | Discovered new exit (range 8) 1298 | -10/Materials | Discovered new exit (range 8) 1426 | -10/Materials | Entered Mines 1429 | -10/Mines | Received a Mining Laser from a helpful Derelict 1612 | -10/Mines | Core integrity fell below 50% 1683 | -10/Mines | Received a Rocket Launcher from a helpful Derelict 1739 | -10/Mines | Discovered new exit (range 9) 1860 | -10/Mines | Assembled infested the area 1882 | -10/Mines | Core integrity fell below 20% 1888 | -10/Mines | Destroyed by D-53 Grenadier with Mini Grenade Launcher Last Messages --------------- 01743_ Acquired Rocket Launcher. 01746_ Acquired 27 matter. 01749_ Acquired Sml. Laser. 01749_ R-06 Scavenger collects Aluminum Leg. 01819_ Searching scrap... 01819_ Found 30 Matter. 01819_ Found Lrg. Storage Unit. 01843_ Dropped Sml. Storage Unit. 01843_ Acquired Lrg. Storage Unit. 01860_ ALERT: Infestation in the mines, dispatching Demolisher response squad. 01877_ C-30 ARC bursts open, deploying its payload. 01877_ D-53 Grenadier unfolds itself. 01880_ Beam Cannon destroyed. 01880_ Wheel destroyed. 01881_ U-05 Engineer builds a Wall. 01882_ Com. Wheel destroyed. 01882_ U-05 Engineer destroyed. 01883_ K-01 Serf collects debris. 01886_ The unstable cave ceiling collapses. Map ----- +----------------------------------------------------+ | ?????????????????????????????????????## %#?? | | ??????????????????????????????????????# ###!#?? | | ??????????????????????????????????????## ##? #?? | | ???????????????????????????????????????####?? ?? | | ???????????????????????????????????????????? #? | | ???????????????????????????????????????????? ##? | | ??????????????????????????????????????????? ##?? | | ??????????????????????????????????????????? #???# | | ??????????????????????????????????????????###??### | | ???????????????????????????????????????????????# # | | ???????????????????????????????????????????????### | | ??????????????????????????? #???????????######## | | ??????????????????????????? ##????????# | | ??????????????????????????? ?????????# ###### | | ??????????????????????????? ?????????????????# | | ?????????????????????????## ?????????????????## | | ?????????????????????????# ??????????????????# | | ????????????????????????? ####""##??????????# | | ????????????????????????? # X ?????????# | | ????????????????????????? ??????????## | | ?????????????????????????# ?????????????# | | ?????????????????##??????# #? ???????????????? | | ????????????????## ???### ### #???????????????? | | ????????????????# ### # ##??????????????? | | ???????????????## t # ##?????????????? | | ???????????????# *@ ##????????????? | | ??????????????# ## k #????????????? | | ??????????????????????## #????????????? | | ??????????????????????## #########????? | | ??????????????????????# ## d " %#????# | | ??????????????????????# d "%"! ###### | | ??????????????????? # t ####### | | ??????????????????## #?????######## | | ???????????????????# # ## #???????????? | | ???????????????????## #### #### #???????????? | | ????????????????????###?## ##?## #???????????? | | ????????????????????????# #??####???????????? | | ????????????????????????# #????????????????? | | ????????????????????????## #????????????????? | | ?????????????????????????#### ##????????????????? | | ????????????????????????????####?????????????????? | | ?????????????????????????????????????????????????? | | ?????????????????????????????????????????????????? | | ?????????????????????????????????????????????????? | | ?????????????????????????????????????????????????? | | ?????????????????????????????????????????????????? | | ?????????????????????????????????????????????????? | | ?????????????????????????????????????????????????? | | ?????????????????????????????????????????????????? | | ?????????????????????????????????????????????????? | +----------------------------------------------------+ Best States ------------- Heat Dissipation 25 Energy Generation 10 Energy Capacity 250 Matter Stores 300 Matter Capacity 300 Sight Range 16 Terrain Scan Density 10 Evasion (%) 42 Recoil Reduction 1 Item Schematics ----------------- None Robot Schematics ------------------ None Fabricated ------------ Nothing Alien Tech Used ----------------- None Achievements -------------- None Challenges ------------ None Game ------ Seed ReactiveChainDriver Manual? 0 Play Time 00:15:53 Cumulative 143.1 hours Start 2020.06.13 @ 21:53:47 End 2020.06.20 @ 19:14:42 Sessions 2 Manual Loads 0 Difficulty Rogue Special Mode None Game No. 84 Rogue 83 Adventurer 1 Explorer 0 Win Type - Total 5 Types 4/0/0/1/0/0/0 Lore% 72 Gallery% 77 Achievement% 56 Wizard Run 0 Options --------- ASCII 1 Keyboard 1 Movement Numpad Keybinds 0 Fullscreen 2 Font 24/Smallcaps Map View 76x50 Tactical HUD 1 Map Filters NONE Filters NONE Steam 1 RUN: 0c3e152a-187e-4679-8c94-9c22c87cdccf